[Event "33rd ECCC Open 2017"]
[Site "Antalya"]
[Date "2017.10.09"]
[Round "2"]
[White "Sukovic, Andrej"]
[Black "Bertagnolli, Alexander"]
[Result "0-1"]
[ECO "B86"]
[WhiteElo "2214"]
[BlackElo "2372"]
[Annotator "NA"]
[PlyCount "80"]
[EventType "team-tourn"]
[EventCountry "TUR"]
[SourceTitle "playchess.com"]
[Source "ChessBase"]
[SourceQuality "1"]
[WhiteTeam "Elektroprivreda"]
[BlackTeam "Augusta Perusia"]
[TimeControl "40/5400+30:1800+30"]

1. e4 {[%emt 0:03:30]} c5 {[%emt 0:01:00]} 2. Nf3 {[%emt 0:00:00]} d6 {[%emt 0:00:30]} 3. d4 {[%emt 0:01:00]} cxd4 {[%emt 0:00:00]} 4. Nxd4 {[%emt 0:00:30]} Nf6 {[%emt 0:00:00]} 5. Nc3 {[%emt 0:00:00]} a6 {[%emt 0:00:00]} 6. Bc4 {[%emt 0:00:00]} e6 {[%emt 0:00:00]} 7. Bb3 {[%emt 0:00:30]} Nbd7 {[%emt 0:00:30]} 8. O-O {[%emt 0:01:30]} Nc5 {[%emt 0:00:00]} 9. Bg5 {[%emt 0:00:00]} Be7 {[%emt 0:01:00] B86: Sicilian Scheveningen/Najdorf: 6 Bc4, without early ...b5} 10. Re1 {[%emt 0:00:00]} O-O {[%emt 0:01:30]} (10... h6 11. Bh4 Nxb3 12. axb3 g5 13. Bg3 e5 14. Nf5 Nxe4 15. Nxd6+ Qxd6 16. Nxe4 Qxd1 17. Rexd1 {½-½ (43) Grandelius,N (2635)-Vachier Lagrave,M (2785) Gibraltar 2016}) 11. f4 {[%emt 0:00:30]} Bd7 {[%emt 0:04:30]} 12. Qf3 {[%emt 0:00:30]} h6 {[%emt 0:00:30]} 13. Bh4 {[%emt 0:00:00]} b5 {[%emt 0:00:30]} 14. e5 {[%emt 0:06:00]} dxe5 {[%emt 0:01:30]} 15. fxe5 {[%emt 0:00:30]} Nh7 {[%emt 0:00:30]} 16. Bxe7 {[%emt 0:08:30]} Qxe7 {[%emt 0:00:00]} 17. Ne4 {[%emt 0:01:30] [#]} Ng5 $146 {[%emt 0:00:00]} 18. Nxg5 {[%emt 0:00:30]} Qxg5 {[%emt 0:00:00]} 19. c3 {[%emt 0:01:30]} a5 {[%emt 0:01:00]} 20. Bc2 {[%emt 0:09:30]} b4 {[%emt 0:00:30]} 21. a3 {[%emt 0:02:30]} bxc3 {[%emt 0:01:30]} 22. b4 {[%emt 0:00:30]} axb4 {[%emt 0:02:30]} 23. axb4 {[%emt 0:00:30]} Rxa1 {[%emt 0:00:30]} 24. Rxa1 {[%emt 0:00:00]} Qxe5 {[%emt 0:00:00]} 25. Rd1 {[%emt 0:07:00]} Na4 {[%emt 0:00:00]} 26. Qd3 {[%emt 0:04:30]} g6 {[%emt 0:13:30]} 27. Nf3 {[%emt 0:01:30]} Qd5 {[%emt 0:00:30]} 28. Qe3 {[%emt 0:29:30]} Qa2 {[%emt 0:06:30]} 29. Qxh6 {[%emt 0:00:30]} Qxc2 {[%emt 0:00:30]} 30. Rxd7 {[%emt 0:02:30] [#]} Nb6 $15 {[%emt 0:01:30]} ({Weaker is} 30... Qb1+ 31. Kf2 $17) (30... Nc5 $1 $19 {[%mdl 512]} 31. bxc5 Qb1+ 32. Kf2 Qb2+ 33. Rd2 cxd2 34. Qxd2 Qb5) 31. Ng5 {[%emt 0:01:25]} Qc1+ {[%emt 0:00:30]} 32. Kf2 {[%emt 0:00:05]} Qxg5 {[%emt 0:00:30]} 33. Qxg5 {[%emt 0:00:32]} Nxd7 {[%emt 0:00:00]} 34. Ke2 {[%emt 0:05:56]} ({Better is} 34. Qb5 $1 $11 Nf6 35. Qc4) 34... Nb6 {[%emt 0:06:00]} 35. Kd1 {[%emt 0:05:57]} Nd5 {[%emt 0:01:30]} 36. Kc2 {[%emt 0:07:05]} Rc8 {[%emt 0:01:30]} 37. Qh4 {[%emt 0:00:20]} Ne3+ {[%emt 0:01:30]} 38. Kc1 {[%emt 0:00:51]} Ra8 {[%emt 0:08:30]} 39. Kb1 {[%emt 0:00:36]} c2+ {[%emt 0:04:30]} 40. Kb2 {[%emt 0:00:00]} Ra2+ {[%emt 0:00:30]} 0-1

[Event "33rd ECCC Open 2017"]
[Site "Antalya"]
[Date "2017.10.09"]
[Round "2"]
[White "Vea, Odin Blikra"]
[Black "Ruane, Ciaran"]
[Result "1-0"]
[ECO "C06"]
[WhiteElo "2211"]
[BlackElo "1946"]
[Annotator "NA"]
[PlyCount "63"]
[EventType "team-tourn"]
[EventCountry "TUR"]
[SourceTitle "playchess.com"]
[Source "ChessBase"]
[SourceQuality "1"]
[WhiteTeam "Valerenga"]
[BlackTeam "Benildus"]
[TimeControl "40/5400+30:1800+30"]

1. e4 {[%emt 0:00:30]} e6 {[%emt 0:01:00]} 2. d4 {[%emt 0:00:30]} d5 {[%emt 0:00:30]} 3. Nd2 {[%emt 0:00:30]} Nf6 {[%emt 0:00:30]} 4. e5 {[%emt 0:00:30]} Nfd7 {[%emt 0:00:30]} 5. Bd3 {[%emt 0:00:30]} c5 {[%emt 0:00:30]} 6. c3 {[%emt 0:00:30]} Nc6 {[%emt 0:00:00]} 7. Ne2 {[%emt 0:00:00]} f6 {[%emt 0:00:00]} 8. exf6 {[%emt 0:00:00]} Nxf6 {[%emt 0:00:00]} 9. O-O {[%emt 0:00:00]} cxd4 {[%emt 0:00:00]} 10. cxd4 {[%emt 0:00:00]} Bd6 {[%emt 0:00:00]} 11. Nf3 {[%emt 0:00:00]} O-O {[%emt 0:00:00]} 12. Bf4 {[%emt 0:00:00]} Bxf4 {[%emt 0:00:00]} 13. Nxf4 {[%emt 0:00:00]} Ne4 {[%emt 0:00:00]} 14. Nh5 {[%emt 0:00:00]} g6 {[%emt 0:00:30]} 15. Ng3 {[%emt 0:00:00]} Nxg3 {[%emt 0:00:30]} 16. hxg3 {[%emt 0:00:00]} Qb6 {[%emt 0:03:30]} 17. Qd2 {[%emt 0:05:30] C06: French Tarrasch: 3...Nf6 4 e5 Nfd7 5 Bd3 main lines} (17. Qb1 Rf6 18. g4 Nxd4 19. Ne5 Qc7 20. g5 Rf4 21. Re1 Nc6 22. Qc1 Rd4 23. Qc2 Qe7 24. Nxc6 bxc6 25. Qxc6 {½-½ (76) Petrov,M (2450)-Danov,L (2326) Sofia 2016}) 17... Nxd4 $146 {[%emt 0:42:30]} ({Predecessor:} 17... Bd7 18. Qh6 Rf7 19. g4 Raf8 20. Rae1 Nb4 21. Bb1 Bb5 22. Ng5 Qxd4 23. Nxf7 Bxf1 24. Bxg6 hxg6 25. Rxe6 Bd3 26. Ne5 Qxf2+ 27. Kh2 Qf4+ 28. Qxf4 Rxf4 29. a3 Nc6 30. Nxd3 Rxg4 31. Nc5 {½-½ (31) Hitzgerova,G (2174)-Milligan,H (2125) Hammershoj 2000}) 18. Ne5 {[%emt 0:03:30]} Nf5 {[%emt 0:05:30]} 19. g4 {[%emt 0:02:30]} (19. Qg5 $11) 19... Ne7 {[%emt 0:02:30]} 20. Qg5 {[%emt 0:07:30]} Qd8 $14 {[%emt 0:08:30]} ({Aber nicht} 20... Qxb2 $2 21. Rae1 $18) 21. Qh6 {[%emt 0:01:30]} Qc7 {[%emt 0:14:30]} 22. Rfe1 {[%emt 0:05:30]} Nc6 {[%emt 0:04:18]} 23. Rac1 {[%emt 0:02:30]} Qg7 {[%emt 0:02:06]} 24. Qxg7+ {[%emt 0:10:30]} Kxg7 {[%emt 0:00:30]} 25. Nxc6 {[%emt 0:00:30]} bxc6 {[%emt 0:00:30]} 26. Rxc6 {[%emt 0:00:30]} Re8 {[%emt 0:03:26]} 27. Rc7+ {[%emt 0:00:30]} Kg8 {[%emt 0:00:00]} 28. f4 {[%emt 0:00:30]} e5 {[%emt 0:02:02]} 29. Bb5 {[%emt 0:03:30]} Re6 {[%emt 0:03:23]} 30. fxe5 {[%emt 0:01:30]} Rb6 {[%emt 0:00:30]} 31. Bc6 {[%emt 0:00:30]} Rab8 {[%emt 0:00:06]} 32. e6 {[%emt 0:00:30]} 1-0

[Event "33rd ECCC Open 2017"]
[Site "Antalya"]
[Date "2017.10.09"]
[Round "2"]
[White "Seresin, Francesco"]
[Black "Aleksic, Nenad C"]
[Result "1/2-1/2"]
[ECO "D36"]
[WhiteElo "2195"]
[BlackElo "2261"]
[Annotator "NA"]
[PlyCount "90"]
[EventType "team-tourn"]
[EventCountry "TUR"]
[SourceTitle "playchess.com"]
[Source "ChessBase"]
[SourceQuality "1"]
[WhiteTeam "Augusta Perusia"]
[BlackTeam "Elektroprivreda"]
[TimeControl "40/5400+30:1800+30"]

1. d4 {[%emt 0:00:30]} Nf6 {[%emt 0:01:00]} 2. c4 {[%emt 0:00:30]} e6 {[%emt 0:00:30]} 3. Nc3 {[%emt 0:01:30]} d5 {[%emt 0:00:30]} 4. cxd5 {[%emt 0:00:30]} exd5 {[%emt 0:00:30]} 5. Bg5 {[%emt 0:00:30]} Be7 {[%emt 0:01:30]} 6. e3 {[%emt 0:00:30]} O-O {[%emt 0:01:30]} 7. Bd3 {[%emt 0:00:30]} c6 {[%emt 0:01:30]} 8. Qc2 {[%emt 0:01:30]} Nbd7 {[%emt 0:01:30]} 9. Nf3 {[%emt 0:00:30]} Re8 {[%emt 0:00:00]} 10. O-O {[%emt 0:00:30]} Nf8 {[%emt 0:00:00]} 11. Rab1 {[%emt 0:01:30]} a5 {[%emt 0:00:30]} 12. Rbe1 {[%emt 0:06:30] D36: Queen's Gambit Declined: Exchange Variation: Main line (5 Bg5 c6 6 Qc2)} g6 {[%emt 0:04:30]} 13. Ne5 {[%emt 0:05:30]} Ne6 {[%emt 0:02:30]} 14. Bh4 {[%emt 0:01:30]} Ng7 {[%emt 0:00:00] [#]} 15. f4 $146 {[%emt 0:10:30]} ({Predecessor:} 15. Qb3 Qc7 16. Rc1 Qd6 17. Na4 Qb4 18. Nb6 Qxb3 19. axb3 Ra7 {1-0 (35) Dreev,A (2643)-Golubov,S (2362) Jerusalem 2015}) 15... Bf5 {[%emt 0:01:00]} 16. Kh1 {[%emt 0:08:30]} Bxd3 {[%emt 0:02:30]} 17. Qxd3 {[%emt 0:01:30]} Nf5 {[%emt 0:00:30]} 18. Bxf6 {[%emt 0:02:30]} Bxf6 {[%emt 0:00:30]} 19. g4 {[%emt 0:00:30]} Nd6 {[%emt 0:00:30]} 20. Rf3 {[%emt 0:10:30]} Bg7 {[%emt 0:00:30]} 21. g5 {[%emt 0:06:30]} Nf5 {[%emt 0:07:30]} 22. Ne2 $11 {[%emt 0:04:30]} Qc8 {[%emt 0:08:30]} 23. Ng3 {[%emt 0:02:30]} Nh4 {[%emt 0:02:30]} 24. Rf2 {[%emt 0:00:30]} Qh3 {[%emt 0:06:30]} 25. Qf1 {[%emt 0:01:30]} Qxf1+ {[%emt 0:03:30]} 26. Rexf1 {[%emt 0:04:30]} f6 {[%emt 0:02:30]} 27. gxf6 {[%emt 0:02:30]} Bxf6 {[%emt 0:00:30]} 28. Ng4 {[%emt 0:05:30]} Bg7 {[%emt 0:00:30]} 29. f5 {[%emt 0:00:30]} Nxf5 {[%emt 0:02:30]} 30. Nxf5 {[%emt 0:01:23]} gxf5 {[%emt 0:00:30]} 31. Rxf5 {[%emt 0:00:00]} Rf8 {[%emt 0:04:30]} 32. Kg2 {[%emt 0:02:29]} Rxf5 {[%emt 0:00:30]} 33. Rxf5 {[%emt 0:00:09]} Ra6 {[%emt 0:02:30]} 34. Nf2 {[%emt 0:06:08]} Ra8 {[%emt 0:00:30]} 35. Kf3 {[%emt 0:02:03]} Re8 {[%emt 0:04:30]} 36. h4 {[%emt 0:02:21]} Rf8 {[%emt 0:01:30]} 37. Rxf8+ {[%emt 0:03:14]} Kxf8 {[%emt 0:00:30]} 38. Nd3 {[%emt 0:03:25]} Ke7 {[%emt 0:04:30]} 39. Nf4 {[%emt 0:02:32]} Kd6 {[%emt 0:02:30]} 40. Ke2 {[%emt 0:00:00]} Bh6 {[%emt 0:03:30]} 41. Nh5 {[%emt 0:07:16]} Ke6 {[%emt 0:00:30]} 42. Kf3 {[%emt 0:00:30]} Kf5 {[%emt 0:00:30]} 43. Ng3+ {[%emt 0:01:30]} Ke6 {[%emt 0:00:30]} 44. e4 {[%emt 0:00:30]} Bg7 {[%emt 0:00:30]} 45. Ne2 {[%emt 0:00:30]} Bh6 {[%emt 0:13:30]} 1/2-1/2

[Event "33rd ECCC Open 2017"]
[Site "Antalya"]
[Date "2017.10.09"]
[Round "2"]
[White "Upton, Timothy J"]
[Black "Fox, Anthony"]
[Result "0-1"]
[ECO "C44"]
[WhiteElo "2164"]
[BlackElo "2016"]
[Annotator "NA"]
[PlyCount "79"]
[EventType "team-tourn"]
[EventCountry "TUR"]
[SourceTitle "playchess.com"]
[Source "ChessBase"]
[SourceQuality "1"]
[WhiteTeam "Bonnevoie"]
[BlackTeam "Adare"]
[TimeControl "40/5400+30:1800+30"]

1. e4 {[%emt 0:00:30]} e5 {[%emt 0:02:00]} 2. Nf3 {[%emt 0:00:30]} Nc6 {[%emt 0:00:00]} 3. c3 {[%emt 0:00:00]} d5 {[%emt 0:00:00]} 4. Qa4 {[%emt 0:00:00]} f6 {[%emt 0:00:30]} 5. Bb5 {[%emt 0:03:30]} Nge7 {[%emt 0:00:30]} 6. exd5 {[%emt 0:01:30]} Qxd5 {[%emt 0:00:30]} 7. O-O {[%emt 0:00:30]} Bd7 {[%emt 0:06:30]} 8. d4 {[%emt 0:00:30]} exd4 {[%emt 0:04:30]} 9. cxd4 {[%emt 0:00:30]} Ne5 {[%emt 0:03:30]} 10. Bxd7+ {[%emt 0:03:30]} Qxd7 {[%emt 0:01:30]} 11. Qxd7+ {[%emt 0:21:30]} Nxd7 {[%emt 0:00:30]} 12. Nc3 {[%emt 0:05:30]} O-O-O {[%emt 0:05:30]} 13. Bf4 {[%emt 0:24:30]} Nb6 {[%emt 0:03:30]} 14. Ne4 {[%emt 0:01:30]} Nbd5 {[%emt 0:05:30]} 15. Bd2 {[%emt 0:03:30]} Ng6 {[%emt 0:10:30]} 16. a3 {[%emt 0:02:30]} Bd6 {[%emt 0:03:30]} 17. g3 {[%emt 0:00:30]} Rhe8 {[%emt 0:01:30]} 18. Rfe1 {[%emt 0:00:30]} Bf8 {[%emt 0:01:30]} 19. h4 {[%emt 0:03:30]} h5 {[%emt 0:04:30]} 20. Rac1 {[%emt 0:03:30]} Re6 {[%emt 0:05:30]} 21. Nc5 {[%emt 0:01:30]} Rxe1+ {[%emt 0:02:30]} 22. Rxe1 {[%emt 0:00:30]} Bxc5 {[%emt 0:07:30]} 23. dxc5 {[%emt 0:00:30]} Nde7 {[%emt 0:01:30]} 24. Kf1 {[%emt 0:04:46]} Rd5 {[%emt 0:02:30]} 25. b4 {[%emt 0:02:46]} Kd7 {[%emt 0:01:30]} 26. Re4 {[%emt 0:04:35]} Nf5 {[%emt 0:04:30]} 27. Ke2 {[%emt 0:01:11]} b6 {[%emt 0:03:23]} 28. cxb6 {[%emt 0:00:49]} cxb6 {[%emt 0:01:11]} 29. a4 {[%emt 0:02:33]} a6 {[%emt 0:00:50]} 30. Be3 {[%emt 0:00:58]} Nxe3 {[%emt 0:01:30]} 31. Kxe3 {[%emt 0:00:09]} Ne7 {[%emt 0:04:52]} 32. Nd4 {[%emt 0:01:00]} Re5 {[%emt 0:07:49]} 33. Rxe5 {[%emt 0:01:45]} fxe5 {[%emt 0:00:30]} 34. Nf3 {[%emt 0:00:00]} Nd5+ {[%emt 0:00:43]} 35. Ke4 {[%emt 0:00:01]} Nxb4 {[%emt 0:02:04]} 36. Nxe5+ {[%emt 0:00:29]} Ke6 {[%emt 0:01:20]} 37. f4 {[%emt 0:01:04]} b5 {[%emt 0:00:47]} 38. axb5 {[%emt 0:01:49]} axb5 {[%emt 0:00:05]} 39. Nf3 {[%emt 0:01:05]} Nc6 {[%emt 0:00:42]} 40. f5+ {[%emt 0:04:30]} 0-1

[Event "33rd ECCC Open 2017"]
[Site "Antalya"]
[Date "2017.10.09"]
[Round "2"]
[White "Ererdem, Gani Eren"]
[Black "Delaney, Killian"]
[Result "1-0"]
[ECO "B17"]
[WhiteElo "2136"]
[BlackElo "2202"]
[Annotator "NA"]
[PlyCount "59"]
[EventType "team-tourn"]
[EventCountry "TUR"]
[SourceTitle "playchess.com"]
[Source "ChessBase"]
[SourceQuality "1"]
[WhiteTeam "Karaman"]
[BlackTeam "Gonzaga"]
[TimeControl "40/5400+30:1800+30"]

1. e4 {[%emt 0:00:30]} c6 {[%emt 0:04:00]} 2. d4 {[%emt 0:00:30]} d5 {[%emt 0:00:00]} 3. Nd2 {[%emt 0:00:00]} dxe4 {[%emt 0:00:00]} 4. Nxe4 {[%emt 0:00:00]} Nd7 {[%emt 0:00:30]} 5. Ng5 {[%emt 0:00:00]} Ngf6 {[%emt 0:00:30]} 6. Bd3 {[%emt 0:00:00]} e6 {[%emt 0:00:00]} 7. N1f3 {[%emt 0:00:30]} Bd6 {[%emt 0:00:00]} 8. Qe2 {[%emt 0:00:30]} h6 {[%emt 0:00:30]} 9. Ne4 {[%emt 0:00:30]} Nxe4 {[%emt 0:00:30]} 10. Qxe4 {[%emt 0:00:30]} Nf6 {[%emt 0:00:00]} 11. Qe2 {[%emt 0:00:30]} Qc7 {[%emt 0:00:00]} 12. Bd2 {[%emt 0:00:00]} b6 {[%emt 0:00:00]} 13. Ne5 {[%emt 0:00:00] B17: Caro-Kann: Modern Line (4...Nd7)} c5 {[%emt 0:00:00]} 14. Bb5+ {[%emt 0:00:30]} Ke7 {[%emt 0:00:00] [#]} 15. Nc6+ $146 {[%emt 0:00:30]} ({Predecessor:} 15. c3 Bb7 16. O-O Rhd8 17. f4 Ne4 18. Be3 Kf8 19. Rae1 Kg8 20. Qg4 Nf6 {1-0 (36) Kamsky,G (2735)-Anand,V (2725) Dos Hermanas 1996}) 15... Kf8 {[%emt 0:00:00]} 16. dxc5 {[%emt 0:00:30]} Bxc5 {[%emt 0:00:30]} 17. Ne5 {[%emt 0:00:30]} Bb7 {[%emt 0:29:30]} 18. O-O-O {[%emt 0:01:30]} Bd5 {[%emt 0:02:30]} 19. Kb1 {[%emt 0:11:30]} a6 {[%emt 0:00:30]} 20. Bd3 {[%emt 0:00:30]} b5 {[%emt 0:00:30]} 21. f4 {[%emt 0:05:30]} Qb7 {[%emt 0:12:30]} 22. Be3 {[%emt 0:35:30]} Rc8 {[%emt 0:01:30]} 23. Bxc5+ {[%emt 0:03:30]} Rxc5 {[%emt 0:00:30]} 24. Rhe1 {[%emt 0:05:30]} h5 {[%emt 0:17:30]} 25. f5 {[%emt 0:05:30]} Ng4 {[%emt 0:05:30]} 26. Nxg4 $18 {[%emt 0:03:30]} hxg4 {[%emt 0:00:30]} 27. Qxg4 {[%emt 0:00:30]} Rxh2 {[%emt 0:03:30]} 28. fxe6 {[%emt 0:02:30]} Rxg2 {[%emt 0:00:00]} 29. e7+ {[%emt 0:02:30]} Qxe7 {[%emt 0:00:00]} 30. Qh3 {[%emt 0:00:00]} 1-0

[Event "33rd ECCC Open 2017"]
[Site "Antalya"]
[Date "2017.10.09"]
[Round "2"]
[White "Longson, Sarah N"]
[Black "Ingason, Sigurdur"]
[Result "1-0"]
[ECO "C54"]
[WhiteElo "2102"]
[BlackElo "1809"]
[Annotator "NA"]
[PlyCount "39"]
[EventType "team-tourn"]
[EventCountry "TUR"]
[SourceTitle "playchess.com"]
[Source "ChessBase"]
[SourceQuality "1"]
[WhiteTeam "3CS Oldham"]
[BlackTeam "Viking"]
[TimeControl "40/5400+30:1800+30"]

1. e4 {[%emt 0:00:30]} e5 {[%emt 0:01:00]} 2. Bc4 {[%emt 0:00:00]} Nf6 {[%emt 0:00:30]} 3. d3 {[%emt 0:00:00]} Nc6 {[%emt 0:03:30]} 4. Nf3 {[%emt 0:00:00]} Bc5 {[%emt 0:02:30]} 5. c3 {[%emt 0:00:00]} h6 {[%emt 0:04:30]} 6. Nbd2 {[%emt 0:05:30]} a6 {[%emt 0:05:30]} 7. Bb3 {[%emt 0:00:30]} O-O {[%emt 0:03:30]} 8. O-O {[%emt 0:01:30]} d5 {[%emt 0:02:30]} 9. exd5 {[%emt 0:04:30]} Nxd5 {[%emt 0:00:30]} 10. Ne4 {[%emt 0:01:30]} Ba7 {[%emt 0:01:30]} 11. Bxh6 {[%emt 0:06:30]} Nxc3 {[%emt 0:07:30]} 12. bxc3 {[%emt 0:01:30]} gxh6 {[%emt 0:00:00] [#]} 13. Nxe5 $16 {[%emt 0:14:30]} (13. Re1 $142 $1) 13... Nxe5 {[%emt 0:14:00]} 14. Qh5 {[%emt 0:00:30]} Ng4 {[%emt 0:02:30]} 15. h3 {[%emt 0:02:30]} Qxd3 {[%emt 0:02:30]} 16. Rae1 {[%emt 0:02:30]} Kg7 {[%emt 0:06:30]} 17. hxg4 {[%emt 0:04:30]} Be6 {[%emt 0:13:30]} 18. Qe5+ {[%emt 0:00:30]} Kh7 {[%emt 0:01:30]} 19. Nf6+ {[%emt 0:03:30]} Kg6 {[%emt 0:00:30]} 20. Nh5 {[%emt 0:00:30]} 1-0

[Event "33rd ECCC Open 2017"]
[Site "Antalya"]
[Date "2017.10.09"]
[Round "2"]
[White "Cirovic, Miroljub"]
[Black "Barp, Alberto"]
[Result "1-0"]
[ECO "E14"]
[WhiteElo "2095"]
[BlackElo "2277"]
[Annotator "NA"]
[PlyCount "83"]
[EventType "team-tourn"]
[EventCountry "TUR"]
[SourceTitle "playchess.com"]
[Source "ChessBase"]
[SourceQuality "1"]
[WhiteTeam "Elektroprivreda"]
[BlackTeam "Augusta Perusia"]
[TimeControl "40/5400+30:1800+30"]

1. d4 {[%emt 0:00:30]} d5 {[%emt 0:01:00]} 2. c4 {[%emt 0:00:30]} e6 {[%emt 0:00:00]} 3. Nf3 {[%emt 0:00:00]} c6 {[%emt 0:01:00]} 4. e3 {[%emt 0:01:00]} Nf6 {[%emt 0:00:00]} 5. b3 {[%emt 0:00:30]} Nbd7 {[%emt 0:01:00]} 6. Bd3 {[%emt 0:00:30]} Bd6 {[%emt 0:00:00]} 7. Bb2 {[%emt 0:00:30]} b6 {[%emt 0:01:00]} 8. Nbd2 {[%emt 0:02:30]} Bb7 {[%emt 0:00:30]} 9. O-O {[%emt 0:00:30]} O-O {[%emt 0:05:30]} 10. Qe2 {[%emt 0:03:30]} c5 {[%emt 0:04:30]} 11. e4 {[%emt 0:09:30] E14: Queen's Indian: Classical Variation (4 e3)} (11. Rad1 Ne4 12. cxd5 exd5 13. Ba6 Bxa6 14. Qxa6 Re8 15. dxc5 Ndxc5 16. Qe2 Rc8 17. Rc1 Bf8 18. Rfd1 Qe7 {½-½ (45) Radjabov,T (2710)-Ding,L (2773) Moscow 2017}) 11... Bc7 $146 {[%emt 0:36:30]} ({Predecessor:} 11... dxc4 12. Nxc4 Be7 13. Rfd1 Rc8 14. a4 Rc7 15. Bc2 Re8 16. Ng5 h6 17. e5 hxg5 18. exf6 Nxf6 19. dxc5 {½-½ (42) Semrl,M (2606)-Persson,C (2581) ICCF email 2012}) 12. cxd5 {[%emt 0:07:30]} exd5 {[%emt 0:00:30]} 13. e5 {[%emt 0:00:30]} Re8 {[%emt 0:00:30]} 14. Ng5 $2 {[%emt 0:04:30]} (14. Nh4 $14 {behält die Oberhand.}) 14... h6 {[%emt 0:08:30]} 15. Nh3 {[%emt 0:08:30]} cxd4 {[%emt 0:01:30]} 16. f4 {[%emt 0:00:00]} Nc5 {[%emt 0:01:30]} 17. Bb5 {[%emt 0:01:00]} Nfd7 {[%emt 0:10:30]} 18. b4 {[%emt 0:02:30]} a6 {[%emt 0:07:10]} 19. Bxd7 {[%emt 0:03:30]} Nxd7 {[%emt 0:02:22]} 20. Qg4 {[%emt 0:00:30]} Qe7 {[%emt 0:06:38]} (20... a5 $11) 21. Nb3 {[%emt 0:02:30]} f6 {[%emt 0:01:27]} 22. Nxd4 {[%emt 0:00:30]} fxe5 $16 {[%emt 0:01:49]} 23. Nf5 {[%emt 0:00:30]} Qf6 {[%emt 0:00:30]} 24. Rac1 {[%emt 0:01:30]} Bd6 {[%emt 0:02:02]} 25. Rce1 {[%emt 0:07:30]} Bc8 {[%emt 0:03:51]} 26. Nxd6 {[%emt 0:00:30]} Qxd6 {[%emt 0:00:36]} 27. fxe5 {[%emt 0:00:30]} Nxe5 {[%emt 0:00:51]} 28. Qg3 {[%emt 0:00:30]} Bxh3 {[%emt 0:00:51]} 29. Bxe5 {[%emt 0:00:00]} Rxe5 {[%emt 0:00:08]} 30. Qxe5 {[%emt 0:00:00]} Qxe5 {[%emt 0:00:20]} 31. Rxe5 {[%emt 0:00:30]} Bd7 {[%emt 0:00:25]} 32. Rxd5 {[%emt 0:00:30]} Be6 {[%emt 0:00:16]} 33. Rd6 {[%emt 0:00:30]} Bxa2 {[%emt 0:00:30]} 34. Rxb6 {[%emt 0:00:30]} Bc4 {[%emt 0:00:30]} 35. Rc1 {[%emt 0:00:30]} Bb5 {[%emt 0:00:30]} 36. Rc7 {[%emt 0:00:00]} Rf8 {[%emt 0:00:14]} 37. h3 {[%emt 0:00:00]} Rf1+ {[%emt 0:03:34]} 38. Kh2 {[%emt 0:00:00]} Rf4 {[%emt 0:00:00]} 39. Rbb7 {[%emt 0:00:00]} g5 {[%emt 0:00:42]} 40. Rc8+ {[%emt 0:00:30]} Rf8 {[%emt 0:00:14]} 41. Rxf8+ {[%emt 0:00:30]} Kxf8 {[%emt 0:00:30]} 42. Rh7 {[%emt 0:00:00]} 1-0